Cogmind - Beta 13 X2 @@@ ROGUE MODE // 2024.02.08 @ 20:58:50 Player: Jezoensis Result: Destroyed by Lightning with EMDS Performance ------------- Evolutions (4) 2000 Regions Visited (16) 3200 Robots Destroyed (124) 620 Value Destroyed (4690) 4690 Prototype IDs (28) 560 Alien Tech Used (1) 200 Bonus (3510) 3510 TOTAL SCORE: 14780 Bonus ------- High Alert Combat Kills 197 Follower Combat Kills 1617 Network Hubs Disabled 400 Met Data Miner 300 Built Enhanced Grunts 300 A7 Reached Mainframe 300 Met R17 at Cetus 500 Friendly Fire -104 Cogmind --------- Core Integrity 0/850 Matter 280/300 Energy 546/600 System Corruption 76% Temperature Cool (0) Movement Core (50) Location -6/Hub_04(d) Parts ------- > --- POWER (1) -------- (None) > --- PROPULSION (4) --- (None) > --- UTILITY (8) ------ Advanced Energy Well Advanced Visual Processing Unit Advanced Signal Interpreter Advanced Targeting Computer Hacking Suite > --- WEAPON (3) ------- (None) > --- INVENTORY (5) ---- Advanced Heat Sink Improved Sensor Array Improved Sensor Array Advanced Sensor Array Advanced KE Penetrator Peak State ------------ > --- POWER ------------ Quantum Reactor > --- PROPULSION ------- Centrium Heavy Treads Centrium Heavy Treads > --- UTILITY ---------- High-capacity Storage Unit Advanced Energy Well Advanced Visual Processing Unit Advanced Signal Interpreter Advanced Targeting Computer Experimental Thermal Shield EM Disruption Field Hacking Suite > --- WEAPON ----------- Advanced Variable Charge Gun Heavy Machine Gun Advanced KE Penetrator > --- INVENTORY -------- Armored Huge Wheel Advanced Heat Sink Structural Scanner Improved Sensor Array Improved Sensor Array Advanced Sensor Array High-powered Tractor Beam Plasma Rifle Advanced Variable Charge Gun Advanced KE Penetrator Heavy Mace [Rating: 108] Favorites ----------- Power Improved Ion Engine Engine Improved Ion Engine Power Core Light Nuclear Core Reactor Quantum Reactor Propulsion Armored Huge Wheel Treads Heavy Treads Leg Carbon-fiber Leg Wheel Armored Huge Wheel Utility High-capacity Storage Unit Device Structural Scanner Storage High-capacity Storage Unit Processor Advanced Targeting Computer Hackware Hacking Suite Protection Medium Reactive Plating Weapon Heavy Particle Gun Energy Gun Heavy Particle Gun Energy Cannon Ion Cannon Ballistic Gun Enhanced Autogun Ballistic Cannon Assault Cannon Launcher Rocket Launcher Special Weapon Mining Laser Impact Weapon Heavy Mace Build | -11 -10 -10 -9 -9 -8 -8 -7 -7 -7 -7 -6 -6 -6 -6 -6 -6 ------- Run | Yrd Mat Min Mat Min Mat Sto Fac Low Low Dat Pro Fac Ext Cet Arc Hub Slots Evolved 8 | . . . 2 . 2 . 2 . . . . 2 . . . . Power . | . . . . . . . . . . . . . . . . . Propulsion 1 | . . . 1 . . . . . . . . . . . . . Utility 6 | . . . 1 . 2 . 1 . . . . 2 . . . . Weapon 1 | . . . . . . . 1 . . . . . . . . . Parts Attached 314 | 8 19 6 41 5 23 26 19 4 15 1 2 29 35 16 2 63 Power 15 | 1 1 . 3 . . 2 . . 1 . . 2 2 1 . 2 Engine 10 | 1 1 . 2 . . 2 . . 1 . . 1 1 . . 1 Core 2 | . . . 1 . . . . . . . . . 1 . . . Reactor 3 | . . . . . . . . . . . . 1 . 1 . 1 Propulsion 45 | 3 8 3 9 1 1 5 4 . 4 . . . 1 1 . 5 Treads 16 | . 4 1 2 . 1 2 . . 1 . . . . 1 . 4 Leg 7 | . . . 4 . . . 1 . 2 . . . . . . . Wheel 22 | 3 4 2 3 1 . 3 3 . 1 . . . 1 . . 1 Hover . | . . . . . . . . . . . . . . . . . Flight . | . . . . . . . . . . . . . . . . . Utility 175 | 2 8 3 16 4 13 14 11 3 7 1 . 19 24 6 2 42 Device 136 | 1 5 3 13 3 8 13 8 3 6 1 . 16 22 2 2 30 Storage 9 | 1 3 . 1 . 1 . . . . . . . . . . 3 Processor 8 | . . . . . 2 1 2 . . . . . . . . 3 Hackware 3 | . . . . . 1 . 1 . . . . 1 . . . . Protection 19 | . . . 2 1 1 . . . 1 . . 2 2 4 . 6 Artifact . | . . . . . . . . . . . . . . . . . Weapon 79 | 2 2 . 13 . 9 5 4 1 3 . 2 8 8 8 . 14 Energy Gun 39 | . 2 . 7 . 3 1 1 . 1 . 1 3 7 7 . 6 Energy Cannon 5 | . . . . . 1 1 1 . 1 . . 1 . . . . Ballistic Gun 10 | 2 . . . . . 1 . . . . . 1 1 . . 5 Ballistic Cannon 7 | . . . 3 . 2 1 1 . . . . . . . . . Launcher 4 | . . . . . 2 . . . . . 1 . . . . 1 Special Weapon 3 | . . . 3 . . . . . . . . . . . . . Impact Weapon 11 | . . . . . 1 1 1 1 1 . . 3 . 1 . 2 Slashing Weapon . | . . . . . . . . . . . . . . . . . Piercing Weapon . | . . . . . . . . . . . . . . . . . Special Melee Weapon . | . . . . . . . . . . . . . . . . . Unidentified Prototypes 14 | . . . 2 . 1 2 . . 1 . . 2 . 2 . 4 Corrupted Parts 5 | . . . . . . . . . . . . . . . . 5 System Corruption 37 | . . . . . . . . . . . . . . . . 37 Parts Lost 39 | . . 1 4 . 1 2 4 . . . . . 3 . . 24 Power 5 | . . . 1 . . . . . . . . . 1 . . 3 Propulsion 13 | . . 1 2 . . 2 2 . . . . . . . . 6 Utility 8 | . . . . . 1 . . . . . . . . . . 7 Weapon 13 | . . . 1 . . . 2 . . . . . 2 . . 8 Highest Loss Streak 14 | . . 1 1 . 1 2 2 . . . . . 2 . . 14 To Critical Strikes . | . . . . . . . . . . . . . . . . . Average Slot Usage (%) 91 | . 99 98 99 100 99 100 95 92 89 78 85 86 86 87 87 85 Engine 6 | . 14 14 5 11 9 9 7 7 7 7 7 6 4 . . 2 Treads 6 | . 3 2 11 11 9 9 4 . 1 7 7 6 6 6 6 8 Leg 1 | . . . 1 . . . 3 7 5 . . . . . . . Wheel 10 | . 24 24 20 22 18 17 10 7 7 7 7 6 6 6 6 4 Device 14 | . 13 14 18 19 16 14 10 15 12 7 14 18 15 12 12 12 Storage 7 | . 14 14 11 11 9 9 7 7 7 7 7 6 6 6 6 6 Processor 14 | . . . . . 9 12 16 23 22 21 21 18 18 18 18 17 Hackware 3 | . . . . . 7 9 9 . . . . 2 6 6 6 6 Protection 2 | . . . 3 2 2 . . . . . . 3 2 6 6 4 Energy Gun 13 | . 22 28 12 . 4 12 14 15 14 14 13 13 13 17 18 13 Ballistic Gun 1 | . 5 . . . . . . . . . . . 3 . . 2 Ballistic Cannon 2 | . . . 8 22 10 . . . . . . . . . . . Impact Weapon 1 | . . . . . . 1 3 2 2 7 7 3 . . . . Naked Turns . | . . . . . . . . . . . . . . . . . Heaviest Build 94 | 12 31 31 65 65 65 61 62 62 81 58 58 80 88 94 81 85 Greatest Support 160 | 20 20 26 26 26 22 22 28 28 28 28 28 28 70 28 28 160 Greatest Overweight (x) 6 | . 2 1 3 2 2 4 6 2 2 2 2 2 3 3 2 3 Average Overweight (x) 1 | . . 1 1 2 2 2 2 2 2 2 2 1 . 2 2 1 Largest Inventory Capacity 20 | 8 20 15 20 20 20 20 20 20 20 20 20 20 20 20 20 20 Average Capacity 18 | 6 11 15 17 20 20 20 20 20 20 20 20 20 20 20 20 19 Most Carried 20 | 6 11 13 20 20 20 20 20 20 20 20 20 20 20 20 20 20 Average Carried 18 | 4 9 10 16 19 19 19 18 19 19 19 19 19 19 19 20 18 Final Capacity 20 | 8 15 15 20 20 20 20 20 20 20 20 20 20 20 20 20 5 Final Carried 20 | 6 10 13 20 20 20 20 20 20 20 19 20 20 20 20 20 5 Class Distribution -------------------- 19% | Mutant 17% | Scavenger-Skirmisher 13% | Skirmisher 12% | Scavenger-Mutant 9% | Scavenger-Assassin 8% | Assassin 7% | Commander-Skirmisher 4% | Scavenger-Gunner Dominant Class ---------------- Mutant | -10/Materials Mutant | -10/Mines Mutant | -9/Materials Mutant | -9/Mines Scavenger-Skirmisher | -8/Materials Scavenger-Mutant | -8/Storage Skirmisher | -7/Factory Skirmisher | -7/Lower Caves Skirmisher | -7/Lower Caves Mutant | -7/Data Miner Assassin | -6/Proximity Caves Scavenger-Assassin | -6/Factory Scavenger-Skirmisher | -6/Extension Scavenger-Gunner | -6/Cetus Scavenger-Gunner | -6/Archives Commander-Skirmisher | -6/Hub_04(d) Resources | -11 -10 -10 -9 -9 -8 -8 -7 -7 -7 -7 -6 -6 -6 -6 -6 -6 ----------- Run | Yrd Mat Min Mat Min Mat Sto Fac Low Low Dat Pro Fac Ext Cet Arc Hub Matter Collected 4133 | 299 213 87 571 112 455 255 225 36 150 . 11 278 458 220 . 763 Remotely 885 | . . . 128 . 147 138 60 . . . . 123 76 80 . 133 Salvage Created 5225 | 93 357 33 856 90 435 436 232 42 228 . . 386 632 800 117 488 Parts 256 | 11 14 3 48 7 37 26 6 . 7 . 3 11 24 35 2 22 Haulers Intercepted 2 | . . . 1 . . . 1 . . . . . . . . . Recyclers Shooed 5 | 1 . . 1 . . . . . . . . 1 2 . . . Parts Field Recycled . | . . . . . . . . . . . . . . . . . Retrieved Matter . | . . . . . . . . . . . . . . . . . Parts Self-Destructed 8 | . . . . . . . . . 5 . 3 . . . . . Prevented . | . . . . . . . . . . . . . . . . . Kills | -11 -10 -10 -9 -9 -8 -8 -7 -7 -7 -7 -6 -6 -6 -6 -6 -6 ------- Run | Yrd Mat Min Mat Min Mat Sto Fac Low Low Dat Pro Fac Ext Cet Arc Hub Combat Hostiles Destroyed 89 | . 7 2 14 2 12 8 4 1 4 . 2 4 10 10 2 7 Guns 49 | . 7 2 5 . . 8 3 1 3 . . 3 6 2 2 7 Cannons 20 | . . . 8 2 7 . 1 . 1 . . 1 . . . . AOE 7 | . . . . . 5 . . . . . 2 . . . . . Classes Destroyed 15 | 1 5 . 5 . . . 1 . . . 1 . 1 . . 1 Worker 7 | . 2 . 2 . . . 1 . . . . 1 . . . 1 Builder 6 | . . . 1 . 1 1 . . . . . . 1 . . 2 Tunneler 5 | 4 . . 1 . . . . . . . . . . . . . Hauler 2 | . . . 1 . . . 1 . . . . . . . . . Recycler 5 | . 2 . 1 . 1 . . . . . . 1 . . . . Operator 2 | . . . 1 . . . . . . . . . . . . 1 Drone 2 | . . . . . . . . . . . 2 . . . . . Watcher 8 | . 1 . 2 . 2 . . . . . . . . 1 . 2 Swarmer 11 | . 4 2 . . 4 . 1 . . . . . . . . . Grunt 37 | . 3 . 8 . 5 2 1 . 3 . . 1 6 3 . 5 Brawler 1 | . . . . . . . . . . . . . . . . 1 Duelist 5 | . . . 1 . . 1 1 . 1 . . . . 1 . . Sentry 23 | . . . 5 2 3 5 . . . . . 3 2 . 2 1 Programmer 2 | . . . . . . . 1 1 . . . . . . . . Behemoth 2 | . . . . . . . . . . . . . 2 . . . Cetus Guard 6 | . . . . . . . . . . . . . . 6 . . Best Kill Streak 7 | 3 5 2 7 2 5 3 3 1 4 . 2 1 4 7 1 6 Combat Bots Only 6 | . 3 2 4 2 4 3 3 1 4 . 2 1 4 6 1 2 Max Kills in Single Turn 4 | 1 2 1 2 1 3 1 1 1 1 . 2 1 2 1 1 4 Gunslinging . | . . . . . . . . . . . . . . . . . Exploded 3 | . . . . . 3 . . . . . 2 . . . . . Melee . | . . . . . . . . . . . . . . . . . Uniques/NPCs Destroyed . | . . . . . . . . . . . . . . . . . Combat | -11 -10 -10 -9 -9 -8 -8 -7 -7 -7 -7 -6 -6 -6 -6 -6 -6 -------- Run | Yrd Mat Min Mat Min Mat Sto Fac Low Low Dat Pro Fac Ext Cet Arc Hub Hostile Shots Fired 722 | . 36 8 48 4 35 36 37 6 13 . 15 67 88 28 4 297 Missed 164 | . 8 . 10 1 10 15 9 4 2 . 11 19 26 4 2 43 Damage Taken 9717 | . 278 62 547 42 386 319 657 31 275 . 51 228 678 487 51 5625 Core 1229 | . 50 . 49 . 95 29 104 . 14 . 24 2 37 . . 825 Absorbed by Shields 697 | . . . . . . . . . . . . 176 133 140 . 248 Reduced by Siege Mode 270 | . . . . . . . . . . . . . 6 39 . 225 Ignored by Resistances 1083 | . . . . . . . . . . . . . 10 34 . 1039 Core Remaining (%) 84 | 100 . 80 . 87 . 77 . . . . 79 . . . . . Volleys Fired 318 | 13 25 3 58 2 35 29 17 4 9 . 1 13 37 18 8 46 Largest 3 | 2 2 2 2 2 2 2 3 3 3 . 1 3 3 3 3 3 Hottest 305 | 40 115 115 140 88 135 135 170 170 170 . 33 203 234 165 210 305 Shots Fired 712 | 26 50 6 105 4 60 52 51 11 27 . 1 39 91 54 16 119 Gun 565 | 26 50 6 60 . 11 39 34 8 18 . . 37 91 54 16 115 Cannon 132 | . . . 40 4 44 13 17 3 9 . . 2 . . . . Launcher 10 | . . . . . 5 . . . . . 1 . . . . 4 Special 5 | . . . 5 . . . . . . . . . . . . . Kinetic 188 | 26 10 . 40 4 39 1 7 . . . . 2 27 . . 32 Thermal 439 | . 40 6 65 . 16 51 44 11 27 . . 37 64 . 8 70 Explosive 10 | . . . . . 5 . . . . . 1 . . . . 4 Electromagnetic 75 | . . . . . . . . . . . . . . 54 8 13 Robot Hit Streak 37 | 4 11 1 12 5 10 8 10 6 7 . . 12 20 19 37 33 Robot Miss Streak 9 | 3 4 4 9 . 3 5 1 1 2 . . 1 2 1 1 2 Penetration Max 1 | . . . . . . . . . . . . . . . . 1 Secondary Targets 4 | . . . 1 . . . . . . . . . . 2 . 1 Max Gunslinging Chain 1 | . . . 1 . . . . . . . . . . 1 . 1 Shots Hit Robots 502 | 13 28 1 54 4 37 27 37 7 17 . . 36 76 50 16 99 Core Hits 246 | 7 18 2 26 2 22 13 10 2 9 . 2 16 34 22 5 56 Critical Kills . | . . . . . . . . . . . . . . . . . Critical Parts Destroyed 1 | . . . . . . . . . . . . . . . . 1 Critical Strikes 24 | . 2 1 4 . 2 2 1 . 2 . . 1 6 . . 3 Burn 20 | . 2 1 2 . 1 2 1 . 2 . . 1 6 . . 2 Destroy 1 | . . . . . . . . . . . . . . . . 1 Blast 3 | . . . 2 . 1 . . . . . . . . . . . Melee Attacks 31 | . . . . . 1 2 3 2 1 . 3 15 . 1 . 3 Impact 31 | . . . . . 1 2 3 2 1 . 3 15 . 1 . 3 Slashing . | . . . . . . . . . . . . . . . . . Piercing . | . . . . . . . . . . . . . . . . . Sneak Attacks 2 | . . . . . . . . . . . . 2 . . . . Combat Hostiles . | . . . . . . . . . . . . . . . . . Follow-up Attacks . | . . . . . . . . . . . . . . . . . Damage Inflicted 12703 | 156 390 27 1223 115 1276 612 815 173 349 . 78 793 1555 932 332 3877 Guns 8692 | 156 390 27 706 . 176 587 518 116 229 . . 557 1555 932 332 2411 Cannons 1839 | . . . 517 115 718 25 242 57 120 . . 45 . . . . Explosions 1922 | . . . . . 382 . . . . . 78 . . . . 1462 Melee 246 | . . . . . . . 55 . . . . 191 . . . . Ramming 4 | . . . . . . . . . . . . . . . . 4 Kinetic 2607 | 156 74 . 517 115 616 . 135 . . . . . 337 . . 657 Thermal 6636 | . 316 27 706 . 278 612 625 173 349 . . 602 1218 . 201 1529 Explosive 1256 | . . . . . 382 . . . . . 78 . . . . 796 Electromagnetic 1954 | . . . . . . . . . . . . . . 932 131 891 Impact 246 | . . . . . . . 55 . . . . 191 . . . . Slashing . | . . . . . . . . . . . . . . . . . Piercing . | . . . . . . . . . . . . . . . . . Highest Corruption 76 | . . . . . . . 1 1 1 . . 3 . 1 1 76 Average Corruption 3 | . . . . . . . 1 1 1 . . 2 . 1 1 6 Corruption Purged 4 | . . . . . . . . . 1 . . 3 . . . . Corruption Blocked 1 | . . . . . . . 1 . . . . . . . . . Effects 28 | . . . . . . . 1 3 . . . . . 1 . 23 Message Errors 6 | . . . . . . . . . . . . . . . . 6 Matter Fused 4 | . . . . . . . . 1 . . . . . . . 3 Heat Flow Errors 1 | . . . . . . . . . . . . . . 1 . . Energy Discharges 4 | . . . . . . . . 1 . . . . . . . 3 Parts Rejected 1 | . . . . . . . . . . . . . . . . 1 Parts Fused 1 | . . . . . . . . . . . . . . . . 1 Data Loss (minor) 4 | . . . . . . . 1 . . . . . . . . 3 Data Loss (major) 1 | . . . . . . . . . . . . . . . . 1 Misfires 1 | . . . . . . . . 1 . . . . . . . . Alerts 1 | . . . . . . . . . . . . . . . . 1 Misdirections 3 | . . . . . . . . . . . . . . . . 3 Weapon Failures 1 | . . . . . . . . . . . . . . . . 1 Overload Shots 1 | . . . . . . . . . . . . . . . . 1 Overflow Damage 72 | . . . . . 47 . . . . . . . . . . 25 Projectiles 41 | . . . . . 41 . . . . . . . . . . . Explosions 31 | . . . . . 6 . . . . . . . . . . 25 Melee . | . . . . . . . . . . . . . . . . . Knockbacks 22 | . . . 4 . 13 . 5 . . . . . . . . . Impact 1 | . . . . . . . 1 . . . . . . . . . Kinetic 20 | . . . 4 . 13 . 3 . . . . . . . . . Secondary 1 | . . . . . . . 1 . . . . . . . . . Self-Inflicted Damage 128 | . . . . . 30 . . . . . 24 . . . . 74 Shots 3 | . . . . . 1 . . . . . 1 . . . . 1 Rammed 1 | . . . . . . . . . . . . . . . . 1 Targets Rammed 1 | . . . . . . . . . . . . . . . . 1 Kicked . | . . . . . . . . . . . . . . . . . Crushed . | . . . . . . . . . . . . . . . . . Highest Temperature 426 | . 126 36 341 5 108 102 300 99 332 . . 324 228 192 156 426 Average Temperature 89 | . 34 18 117 3 27 32 73 52 163 . . 110 102 77 71 108 Received Heat Transfer 2127 | . 87 . 243 18 180 189 63 . 54 . 6 90 308 62 . 827 Effects 8 | . . . 4 . . . 1 . . . . . . . . 3 Shutdowns 1 | . . . 1 . . . . . . . . . . . . . Energy Bleed 2 | . . . 1 . . . 1 . . . . . . . . . Interference 4 | . . . 2 . . . . . . . . . . . . 2 Matter Decay 1 | . . . . . . . . . . . . . . . . 1 Siege Activations 11 | . . . . . . . . . . . . . 4 3 . 4 Total Turns 183 | . . . . . . . . . . . . . 23 41 . 119 Longest Duration 48 | . . . . . . . . . . . . . 13 16 . 48 Robots Corrupted 8 | . . . . . . . . . . . . . . 8 . . Combat Hostiles 8 | . . . . . . . . . . . . . . 8 . . Parts Fried 10 | . . . . . . . . . . . . . . 8 . 2 Impact Corruptions . | . . . . . . . . . . . . . . . . . Robots Melted 5 | . . . 1 . . . . . . . . . 4 . . . Combat Hostiles 5 | . . . 1 . . . . . . . . . 4 . . . Parts Melted 38 | . 1 . 3 . . 3 3 3 3 . . 6 13 . 2 1 Heat Transferred 14581 | . 999 148 1517 . 518 1184 1184 259 777 . . 1386 3453 . 450 2706 Parts Sabotaged 2 | . . . . . . . . . . . . . . . . 2 Parts Stolen . | . . . . . . . . . . . . . . . . . Parts Stripped . | . . . . . . . . . . . . . . . . . Power Chain Reactions 1 | . . . . . . . . . . . . . . . . 1 Missiles Intercepted . | . . . . . . . . . . . . . . . . . Alert | -11 -10 -10 -9 -9 -8 -8 -7 -7 -7 -7 -6 -6 -6 -6 -6 -6 ------- Run | Yrd Mat Min Mat Min Mat Sto Fac Low Low Dat Pro Fac Ext Cet Arc Hub Peak Influence 1185 | 20 346 143 356 136 330 401 234 . . . . 133 213 491 371 1185 Initial 196 | . 13 103 55 81 52 35 177 . . . . . 22 60 196 129 Average 263 | 7 206 107 170 132 146 208 155 . . . . 34 69 287 312 900 Maximum Alert Level 4 | . 1 . 1 . 1 2 1 . . . . . 1 2 1 4 Low Security (%) 64 | 100 48 100 72 100 72 62 77 . . . . 100 96 17 7 3 Level 1 18 | . 51 . 27 . 27 35 22 . . . . . 3 54 92 4 Level 2 1 | . . . . . . 2 . . . . . . . 27 . 2 Level 3 11 | . . . . . . . . . . . . . . . . 69 Level 4 3 | . . . . . . . . . . . . . . . . 20 Level 5 . | . . . . . . . . . . . . . . . . . High Security . | . . . . . . . . . . . . . . . . . Max Security . | . . . . . . . . . . . . . . . . . Squads Dispatched 37 | . 3 . 4 . 4 2 4 . . . . 3 1 . . 16 Investigation 13 | . 2 . 3 . 1 . 2 . . . . 1 . . . 4 Extermination 4 | . . . . . . . 2 . . . . 1 . . . 1 Reinforcement 14 | . 1 . 1 . 2 . . . . . . 1 1 . . 8 Assault 3 | . . . . . . 2 . . . . . . . . . 1 Garrison 3 | . . . . . 1 . . . . . . . . . . 2 Intercept . | . . . . . . . . . . . . . . . . . Searches Triggered . | . . . . . . . . . . . . . . . . . Construction Impeded 4 | . . . . . 1 . . . . . . . . . . 3 Haulers Reinforced 2 | . . . . . . . . . . . . 1 . . . 1 Active Scanning Responses . | . . . . . . . . . . . . . . . . . Cargo Convoy Interrupts . | . . . . . . . . . . . . . . . . . Stealth | -11 -10 -10 -9 -9 -8 -8 -7 -7 -7 -7 -6 -6 -6 -6 -6 -6 --------- Run | Yrd Mat Min Mat Min Mat Sto Fac Low Low Dat Pro Fac Ext Cet Arc Hub Distress Signals 12 | . 1 . 1 . 4 1 . . . . . 1 . 2 . 2 Communications Jammed . | . . . . . . . . . . . . . . . . . Distress Signals . | . . . . . . . . . . . . . . . . . Times Spotted 195 | . 16 3 19 2 16 21 4 1 4 . 3 6 22 18 3 57 Peak Tracking Total 12 | . 3 3 4 2 6 7 4 1 4 . 2 2 4 7 1 12 Tactical Retreats 11 | . 4 . . . 1 . . . . . . . 2 . . 4 Traps | -11 -10 -10 -9 -9 -8 -8 -7 -7 -7 -7 -6 -6 -6 -6 -6 -6 ------- Run | Yrd Mat Min Mat Min Mat Sto Fac Low Low Dat Pro Fac Ext Cet Arc Hub Traps Triggered 10 | . . . . . 1 1 2 . . . . 2 3 . . 1 Indirectly . | . . . . . . . . . . . . . . . . . Trap Hack Attempts . | . . . . . . . . . . . . . . . . . Triggered . | . . . . . . . . . . . . . . . . . Disarmed . | . . . . . . . . . . . . . . . . . Reprogrammed . | . . . . . . . . . . . . . . . . . Reused . | . . . . . . . . . . . . . . . . . Traps Extracted . | . . . . . . . . . . . . . . . . . Installed . | . . . . . . . . . . . . . . . . . Triggered . | . . . . . . . . . . . . . . . . . Machines | -11 -10 -10 -9 -9 -8 -8 -7 -7 -7 -7 -6 -6 -6 -6 -6 -6 ---------- Run | Yrd Mat Min Mat Min Mat Sto Fac Low Low Dat Pro Fac Ext Cet Arc Hub Machines Disabled 12 | . . . . . . 3 . . . . . . . . . 9 Max in Single Turn 2 | . . . . . . 1 . . . . . . . . . 2 Garrison Access 3 | . . . . . 1 1 . . . . . . . . . 1 Network Hub 2 | . . . . . . . . . . . . . . . . 2 Machines Repaired . | . . . . . . . . . . . . . . . . . Machines Dismantled . | . . . . . . . . . . . . . . . . . Machines Sabotaged . | . . . . . . . . . . . . . . . . . Overloaded Fab Kills . | . . . . . . . . . . . . . . . . . Hacking | -11 -10 -10 -9 -9 -8 -8 -7 -7 -7 -7 -6 -6 -6 -6 -6 -6 --------- Run | Yrd Mat Min Mat Min Mat Sto Fac Low Low Dat Pro Fac Ext Cet Arc Hub Machines Accessed 56 | . 7 . 7 . 9 4 4 1 . 3 . 6 4 1 . 10 Terminals 41 | . 5 . 6 . 8 3 1 . . . . 4 4 1 . 9 Fabricators 4 | . . . . . . . 2 . . . . 2 . . . . Repair Stations . | . . . . . . . . . . . . . . . . . Recycling Units 4 | . 2 . 1 . . . 1 . . . . . . . . . Scanalyzers . | . . . . . . . . . . . . . . . . . Garrison Access 3 | . . . . . 1 1 . . . . . . . . . 1 Total Hacks 176 | . 14 . 26 . 32 12 11 1 . 26 . 14 15 1 . 24 Successful 96 | . 8 . 14 . 20 4 4 1 . 26 . 6 3 . . 10 Failed 79 | . 6 . 11 . 12 8 7 . . . . 8 12 1 . 14 Catastrophic 13 | . . . 2 . 1 . . . . . . 3 1 1 . 5 Database Lockouts 1 | . . . 1 . . . . . . . . . . . . . Manual 107 | . 13 . 23 . 22 5 8 . . . . 9 12 1 . 14 Terminals 126 | . 12 . 25 . 31 8 4 . . . . 8 15 1 . 22 Fabricators 10 | . . . . . . . 4 . . . . 6 . . . . Repair Stations . | . . . . . . . . . . . . . . . . . Recycling Units 6 | . 2 . 1 . . . 3 . . . . . . . . . Scanalyzers . | . . . . . . . . . . . . . . . . . Garrison Access 7 | . . . . . 1 4 . . . . . . . . . 2 Terminal Hacks 66 | . 3 . 10 . 13 2 . 1 . 26 . 3 3 . . 5 Record 6 | . . . . . . . . . . 6 . . . . . . Part Schematic 11 | . . . . . . . . . . 11 . . . . . . Robot Schematic 6 | . . . . . . . . . . 6 . . . . . . Robot Analysis 11 | . 2 . 4 . 5 . . . . . . . . . . . Prototype ID Bank 5 | . . . . . 2 . . . . 3 . . . . . . Open Door 3 | . . . . . . 2 . 1 . . . . . . . . Level Access Points 1 | . . . . . . . . . . . . . . . . 1 Branch Access Points 3 | . . . 1 . 1 . . . . . . 1 . . . . Terminal Index 3 | . . . 1 . 1 . . . . . . . 1 . . . Unreport Threat 11 | . . . 1 . 3 . . . . . . 1 2 . . 4 Locate Traps 6 | . 1 . 3 . 1 . . . . . . 1 . . . . Fabricator Hacks 3 | . . . . . . . 2 . . . . 1 . . . . Network Status 2 | . . . . . . . 1 . . . . 1 . . . . Build 1 | . . . . . . . 1 . . . . . . . . . Repair Station Hacks . | . . . . . . . . . . . . . . . . . Recycling Unit Hacks . | . . . . . . . . . . . . . . . . . Scanalyzer . | . . . . . . . . . . . . . . . . . Garrison Access Hacks 3 | . . . . . 1 1 . . . . . . . . . 1 Seal Access 3 | . . . . . 1 1 . . . . . . . . . 1 Unauthorized Hacks 24 | . 5 . 4 . 6 1 2 . . . . 2 . . . 4 Terminals 19 | . 3 . 3 . 6 1 1 . . . . 1 . . . 4 Track 5 | . 1 . . . 3 . . . . . . . . . . 1 Assimilate 1 | . . . . . . 1 . . . . . . . . . . Botnet 9 | . 2 . 2 . 2 . 1 . . . . 1 . . . 1 Operators 2 | . . . 1 . 1 . . . . . . . . . . . Sabotage 2 | . . . . . . . . . . . . . . . . 2 Fabricators 2 | . . . . . . . 1 . . . . 1 . . . . Fabnet 2 | . . . . . . . 1 . . . . 1 . . . . Repair Stations . | . . . . . . . . . . . . . . . . . Recycling Units 3 | . 2 . 1 . . . . . . . . . . . . . Tunnel 3 | . 2 . 1 . . . . . . . . . . . . . Scanalyzers . | . . . . . . . . . . . . . . . . . Garrison Access . | . . . . . . . . . . . . . . . . . Data Cores Recovered 1 | . . . 1 . . . . . . . . . . . . . Used 1 | . . . 1 . . . . . . . . . . . . . Hacking Detections 43 | . 4 . 6 . 8 2 4 . . . . 5 4 1 . 9 Full Trace Events 6 | . . . 2 . . . 2 . . . . 1 . . . 1 Feedback Events . | . . . . . . . . . . . . . . . . . Feedback Blocked . | . . . . . . . . . . . . . . . . . Robot Schematics Acquired 6 | . . . . . . . . . . 6 . . . . . . Robots Built . | . . . . . . . . . . . . . . . . . Authchips . | . . . . . . . . . . . . . . . . . Time . | . . . . . . . . . . . . . . . . . Total Robot Build Rating . | . . . . . . . . . . . . . . . . . Part Schematics Acquired 11 | . . . . . . . . . . 11 . . . . . . Parts Built 2 | . . . . . . . 2 . . . . . . . . . Authchips . | . . . . . . . . . . . . . . . . . Time 35 | . . . . . . . 35 . . . . . . . . . Total Part Build Rating 12 | . . . . . . . 12 . . . . . . . . . Parts Repaired . | . . . . . . . . . . . . . . . . . Time . | . . . . . . . . . . . . . . . . . Parts Recycled . | . . . . . . . . . . . . . . . . . Recycled Matter . | . . . . . . . . . . . . . . . . . Retrieved Matter . | . . . . . . . . . . . . . . . . . Retrieved Components . | . . . . . . . . . . . . . . . . . Parts Scanalyzed . | . . . . . . . . . . . . . . . . . Part Schematics Acquired . | . . . . . . . . . . . . . . . . . Parts Damaged . | . . . . . . . . . . . . . . . . . Bothacking | -11 -10 -10 -9 -9 -8 -8 -7 -7 -7 -7 -6 -6 -6 -6 -6 -6 ------------ Run | Yrd Mat Min Mat Min Mat Sto Fac Low Low Dat Pro Fac Ext Cet Arc Hub Used RIF Installer . | . . . . . . . . . . . . . . . . . Robots Hacked 1 | . . . . . . . . . . . . . . . . 1 Non-combat . | . . . . . . . . . . . . . . . . . Combat 1 | . . . . . . . . . . . . . . . . 1 Robot Hacks Applied . | . . . . . . . . . . . . . . . . . Relay Couplers Released 4 | . . . . . . 2 . . . . . . . . . 2 Machine Destruction 4 | . . . . . . 2 . . . . . . . . . 2 Fabnet Peak Effective % 3 | . . . . . . . . . . . 3 3 3 3 3 3 Autooverrided 1 | . . . . . . . . . . . . . . . . 1 Robots Rewired 7 | . . . . . . . . . . . . . 7 . . . Allies Hacked . | . . . . . . . . . . . . . . . . . Hacks Repelled . | . . . . . . . . . . . . . . . . . Allies | -11 -10 -10 -9 -9 -8 -8 -7 -7 -7 -7 -6 -6 -6 -6 -6 -6 -------- Run | Yrd Mat Min Mat Min Mat Sto Fac Low Low Dat Pro Fac Ext Cet Arc Hub Total Allies 20 | . . . . . . 3 . . . . . . 11 5 . 1 Largest Group 8 | . . . . . . 2 . . . . . . 8 6 6 6 Highest-Rated Group 639 | . . . . . . 62 . . . . . . 300 639 639 509 Highest-Rated Ally 159 | . . . . . . 31 . . . . . . 159 159 159 96 Total Orders 9 | . . . . . . . . . . . . . 5 3 . 1 STAY 3 | . . . . . . . . . . . . . . 2 . 1 FOLLOW 1 | . . . . . . . . . . . . . . 1 . . EXPLORE 5 | . . . . . . . . . . . . . 5 . . . Ally Attacks 323 | . . . . . . 21 . . . . . . 82 53 31 136 Total Damage 10837 | . . . . . . 291 . . . . . . 1675 1187 1269 6415 Kills 61 | . . . . . . 2 . . . . . . 9 8 2 40 Allies Corrupted . | . . . . . . . . . . . . . . . . . Allies Melted . | . . . . . . . . . . . . . . . . . Intel | -11 -10 -10 -9 -9 -8 -8 -7 -7 -7 -7 -6 -6 -6 -6 -6 -6 ------- Run | Yrd Mat Min Mat Min Mat Sto Fac Low Low Dat Pro Fac Ext Cet Arc Hub Robot Analysis Total 11 | . 2 . 4 . 5 . . . . . . . . . . . Derelict Logs Recovered 6 | . . 2 . 1 . . . . 2 . 1 . . . . . Drone Launches 5 | . . . . . . . . . . . . . 5 . . . Drone Recoveries 3 | . . . . . . . . . . . . . 3 . . . Exploration | -11 -10 -10 -9 -9 -8 -8 -7 -7 -7 -7 -6 -6 -6 -6 -6 -6 ------------- Run | Yrd Mat Min Mat Min Mat Sto Fac Low Low Dat Pro Fac Ext Cet Arc Hub Turns Passed 8000 | 97 516 129 775 169 525 386 518 484 401 98 409 796 1182 323 79 1113 Spaces Moved 4926 | 56 430 113 438 127 321 211 331 348 260 75 304 501 606 168 38 599 Core 18 | 16 . . . . . . . . . . . . . . . 2 Treads 498 | . . . . . . . . . . . . . 365 . . 133 Legs . | . . . . . . . . . . . . . . . . . Wheels 4410 | 40 430 113 438 127 321 211 331 348 260 75 304 501 241 168 38 464 Hover . | . . . . . . . . . . . . . . . . . Flight . | . . . . . . . . . . . . . . . . . Fastest Speed 50 | 50 80 95 105 115 115 115 115 130 130 130 130 115 130 130 130 50 Average Speed 124 | 71 90 95 112 115 115 117 124 130 130 130 130 129 150 130 130 138 Slowest Speed 240 | 80 110 105 145 120 115 150 170 130 130 130 130 130 240 145 130 160 Overloaded Moves . | . . . . . . . . . . . . . . . . . Propulsion Burnouts . | . . . . . . . . . . . . . . . . . Robots Hopped . | . . . . . . . . . . . . . . . . . Cave-ins Triggered . | . . . . . . . . . . . . . . . . . Exploration Rate (%) 49 | 5 76 39 42 32 39 47 10 46 47 72 63 19 79 81 73 78 Regions Visited 16 Branch Regions 11 Pre-discovered Areas 5 | . 2 1 1 . . . . . . 1 . . . . . . Known Exits Taken 12 | . . . 1 . 1 1 1 1 1 1 1 1 1 1 1 . Unknown Exits Taken 4 | 1 1 1 . 1 . . . . . . . . . . . . Scrap Searched 9 | . . 1 . 2 . . . 2 3 . 1 . . . . . Spaces Dug 30 | . . . 5 . 2 2 1 2 1 . 3 11 . 1 . 2 Terrain Destroyed 283 | . . . 14 . 40 4 1 2 1 . 11 11 . 1 . 198 Melee 24 | . . . . . 1 2 1 2 1 . 3 11 . 1 . 2 Projectile 25 | . . . 14 . 7 2 . . . . . . . . . 2 AOE 234 | . . . . . 32 . . . . . 8 . . . . 194 Terrain Rammed . | . . . . . . . . . . . . . . . . . Walls Destroyed . | . . . . . . . . . . . . . . . . . Machines Disabled . | . . . . . . . . . . . . . . . . . Actions | -11 -10 -10 -9 -9 -8 -8 -7 -7 -7 -7 -6 -6 -6 -6 -6 -6 --------- Run | Yrd Mat Min Mat Min Mat Sto Fac Low Low Dat Pro Fac Ext Cet Arc Hub Total 6043 | 86 505 125 602 146 411 286 393 368 298 75 310 584 802 233 53 766 Wait 187 | 1 12 . 23 3 16 6 6 7 1 . . 9 51 7 6 39 Move 4910 | 55 429 112 437 126 320 210 330 347 259 74 303 500 605 167 37 599 Hop . | . . . . . . . . . . . . . . . . . Pick Up 107 | 7 9 4 22 5 6 3 11 1 4 . 1 9 10 9 . 6 Fast Attach 39 | 7 3 . 5 . 1 2 1 1 5 . . 3 1 2 . 8 Attach 55 | 1 . 1 7 1 4 2 8 . 1 1 . 4 5 4 . 16 Detach 16 | 1 2 . 3 . 2 1 2 1 . . . . 1 1 . 2 Swap 222 | . 16 5 30 4 18 22 10 3 10 . 2 22 29 10 2 39 Drop 98 | 1 9 . 17 5 8 5 5 2 8 . . 9 8 14 . 7 Fire 318 | 13 25 3 58 2 35 29 17 4 9 . 1 13 37 18 8 46 Melee 31 | . . . . . 1 2 3 2 1 . 3 15 . 1 . 3 Ram . | . . . . . . . . . . . . . . . . . Kick . | . . . . . . . . . . . . . . . . . Crush 1 | . . . . . . . . . . . . . . . . 1 Escape Stasis 11 | . . . . . . 4 . . . . . . 7 . . . Rewire 48 | . . . . . . . . . . . . . 48 . . . Trap . | . . . . . . . . . . . . . . . . . Miscellaneous . | . . . . . . . . . . . . . . . . . Route ------- -11/Scrapyard -10/Materials (discovered 2 exits: *Mat / [*Min]) -10/Mines -9/Materials (discovered 2 exits: *Mat / *Min) -9/Mines -8/Materials (discovered 3 exits: *Fac / *Sto x2) -8/Storage -7/Factory (discovered 2 exits: *Low x2) -7/Lower Caves (discovered 2 exits: *Low / *Zio) -7/Lower Caves -7/Data Miner -6/Proximity Caves -6/Factory (discovered 4 exits: *Low x2 / *Ext x2) -6/Extension (discovered 2 exits: *Fac / *Cet) -6/Cetus (discovered 2 exits: *Fac / *Arc) -6/Archives (discovered 2 exits: *Hub x2) -6/Hub_04(d) (discovered 4 exits: *Fac x4) History --------- Turn | Location | Event 14 | -11/Scrapyard | Discovered new exit (range 14) 98 | -11/Scrapyard | Entered Materials 314 | -10/Materials | Build established: Mutant 382 | -10/Materials | Discovered new exit (range 10) 515 | -10/Materials | Discovered new exit (range 13) 614 | -10/Materials | Entered Mines 615 | -10/Mines | Assembled infested the area 632 | -10/Mines | Learned Materials security intel 654 | -10/Mines | Learned location of Storage (-8) 715 | -10/Mines | Discovered new exit (range 6) 743 | -10/Mines | Entered Materials 743 | -9/Materials | Evolved 2 slots: Propulsion x1, Utility x1 1305 | -9/Materials | Central database locked down 1305 | -9/Materials | Identified exit to Mines 1375 | -9/Materials | Discovered new exit (range 3) 1518 | -9/Materials | Entered Mines 1639 | -9/Mines | Received a Rocket Launcher from a helpful Derelict 1674 | -9/Mines | Discovered new exit (range 13) 1687 | -9/Mines | Entered Materials 1687 | -8/Materials | Evolved 2 slots: Utility x2 1838 | -8/Materials | Garrison activated, responded to threat 2104 | -8/Materials | Discovered new exit (range 10) 2106 | -8/Materials | Identified exit to Storage 2212 | -8/Materials | Entered Storage 2402 | -8/Storage | Met a pair of Derelict thieves 2569 | -8/Storage | Discovered new exit (range 16) 2597 | -8/Storage | Identified exit to Factory 2598 | -8/Storage | Entered Factory 2598 | -7/Factory | Evolved 2 slots: Utility x1, Weapon x1 2599 | -7/Factory | Identified exit to Lower Caves 2800 | -7/Factory | Discovered exit to Lower Caves (range 6) 2938 | -7/Factory | Fabricated Hvy. Treads? 3116 | -7/Factory | Entered Lower Caves 3266 | -7/Lower Caves | Build established: Skirmisher 3475 | -7/Lower Caves | A Derelict revealed a hidden shortcut to a safe place 3477 | -7/Lower Caves | Identified exit to Zion 3561 | -7/Lower Caves | Discovered new exit (range 20) 3584 | -7/Lower Caves | Identified exit to Lower Caves 3600 | -7/Lower Caves | Entered another Lower Caves area 3804 | -7/Lower Caves | Learned Factory emergency access door positions 3929 | -7/Lower Caves | Found Alien Artifact 3929 | -7/Lower Caves | Identified Core Expander 3929 | -7/Lower Caves | Installed Core Expander, added new Propulsion slot 3995 | -7/Lower Caves | Discovered new exit (range 6) 4000 | -7/Lower Caves | Identified exit to Data Miner 4001 | -7/Lower Caves | Entered Data Miner 4001 | -7/Data Miner | Discovered new exit (range 6) 4021 | -7/Data Miner | Met Data Miner 4051 | -7/Data Miner | Learned location of Section 7 (-3) 4051 | -7/Data Miner | Acquired the access code to Warlord's prototype stash 4068 | -7/Data Miner | Received God Mode back door access code from Data Miner 4096 | -7/Data Miner | Identified exit to Proximity Caves 4099 | -7/Data Miner | Entered Proximity Caves 4283 | -6/Proximity Caves | Learned Factory terminal intel 4409 | -6/Proximity Caves | Build established: Assassin 4482 | -6/Proximity Caves | Discovered new exit (range 19) 4483 | -6/Proximity Caves | Attracted the attention of an 0b10 checkpoint 4506 | -6/Proximity Caves | Identified exit to Factory 4508 | -6/Proximity Caves | Entered Factory 4508 | -6/Factory | Evolved 2 slots: Utility x2 4510 | -6/Factory | Loaded intel: 26 terminal locations 4808 | -6/Factory | Build established: Scavenger-Assassin 5014 | -6/Factory | Identified exit to Lower Caves 5014 | -6/Factory | Identified exit to Extension 5304 | -6/Factory | Entered Extension 5543 | -6/Extension | Rescued a captive Derelict 5544 | -6/Extension | Rescued a captive Derelict 5912 | -6/Extension | Rescued a captive Derelict 6144 | -6/Extension | Build established: Commander-Skirmisher 6162 | -6/Extension | Spotted B-75 Beast 6169 | -6/Extension | Spotted B-75 Beast 6173 | -6/Extension | Destroyed B-75 Beast 6200 | -6/Extension | Destroyed B-75 Beast 6229 | -6/Extension | Lost 3 allies 6292 | -6/Extension | Rescued A7 6433 | -6/Extension | Discovered new exit (range 20) 6433 | -6/Extension | Discovered new exit (range 20) 6462 | -6/Extension | Identified exit to Cetus 6486 | -6/Extension | Entered Cetus 6486 | -6/Cetus | Accompanied by 6 allies (A7) 6491 | -6/Cetus | Acquired a Cetus Manufacturing Module code from A7 6505 | -6/Cetus | Spotted Cetus Guard 6505 | -6/Cetus | Spotted Cetus Guard 6506 | -6/Cetus | Spotted Cetus Guard 6515 | -6/Cetus | Destroyed Cetus Guard 6515 | -6/Cetus | Spotted Cetus Guard 6520 | -6/Cetus | Allies destroyed Cetus Guard 6528 | -6/Cetus | Destroyed Cetus Guard 6572 | -6/Cetus | Lost 5 allies 6636 | -6/Cetus | Started Cetus Manufacturing Module 6650 | -6/Cetus | Escorted A7 to Cetus Mainframe 6661 | -6/Cetus | Manufactured an Enhanced Grunt 6671 | -6/Cetus | Discovered new exit (range 20) 6686 | -6/Cetus | Manufactured an Enhanced Grunt 6698 | -6/Cetus | Spotted Cetus Guard 6700 | -6/Cetus | Spotted Cetus Guard 6700 | -6/Cetus | Spotted Cetus Guard 6705 | -6/Cetus | Destroyed Cetus Guard 6705 | -6/Cetus | Spotted Cetus Guard 6711 | -6/Cetus | Manufactured an Enhanced Grunt 6712 | -6/Cetus | Destroyed Cetus Guard 6716 | -6/Cetus | Destroyed Cetus Guard 6719 | -6/Cetus | Destroyed Cetus Guard 6728 | -6/Cetus | Discovered new exit (range 19) 6736 | -6/Cetus | Manufactured an Enhanced Grunt 6740 | -6/Cetus | Met Revision 17 6761 | -6/Cetus | Manufactured an Enhanced Grunt 6808 | -6/Cetus | Identified exit to Archives 6809 | -6/Cetus | Entered Archives 6809 | -6/Archives | Accompanied by 6 allies (A7) 6814 | -6/Archives | Received a hacking code to weaken MAIN.C 6855 | -6/Archives | Discovered new exit (range 19) 6861 | -6/Archives | Discovered new exit (range 19) 6884 | -6/Archives | Identified exit to Hub_04(d) 6888 | -6/Archives | Entered Hub_04(d) 6888 | -6/Hub_04(d) | Accompanied by 5 allies 6911 | -6/Hub_04(d) | Garrison activated, responded to threat 7085 | -6/Hub_04(d) | Discovered new exit (range 9) 7294 | -6/Hub_04(d) | Spotted B-75 Beast 7348 | -6/Hub_04(d) | Allies destroyed B-75 Beast 7377 | -6/Hub_04(d) | Lost 5 parts (1p2u2w) 7392 | -6/Hub_04(d) | Identified exit to Factory 7476 | -6/Hub_04(d) | Found Prototype Device 7476 | -6/Hub_04(d) | Identified Exp. Thermal Shield 7588 | -6/Hub_04(d) | First assault squad dispatched 7824 | -6/Hub_04(d) | Network Hub disabled 7829 | -6/Hub_04(d) | Spotted Lightning 7831 | -6/Hub_04(d) | Spotted Lightning 7833 | -6/Hub_04(d) | Spotted Lightning 7848 | -6/Hub_04(d) | System corruption reached 10% 7873 | -6/Hub_04(d) | Spotted Lightning 7877 | -6/Hub_04(d) | Spotted Lightning 7884 | -6/Hub_04(d) | System corruption reached 30% 7890 | -6/Hub_04(d) | Spotted Lightning 7971 | -6/Hub_04(d) | Lost 14 parts (1p4n3u6w) 7980 | -6/Hub_04(d) | Core integrity fell below 50% 7991 | -6/Hub_04(d) | Network Hub disabled 7991 | -6/Hub_04(d) | Spotted Lightning 8000 | -6/Hub_04(d) | Core integrity fell below 20% 8001 | -6/Hub_04(d) | Destroyed by Lightning with EMDS Last Messages --------------- 07985_ Quantum Reactor destroyed. 07990_ EMDS Slug penetrates Wall. 07991_ Penetrated by EMDS Slug. 07991_ ALERT: Network intrusion management efficiency at 70%. 07991_ Network Hub explodes. 07991_ Emergency Access malfunctions. 07991_ Door malfunctions. 07991_ Penetrated by EMDS Slug. 07992_ P-60 Hacker resets I-47 Archangel, system corruption cleaned. 07992_ Penetrated by EMDS Slug. 07995_ EM Disruption Field destroyed. 07995_ X-72 Disruptor IFF system glitched. 07995_ Penetrated by EMDS Slug. 07996_ Centrium Heavy Treads destroyed. 07999_ Integrated Corrupted Adv. Variable Charge Gun (+10). 07999_ Penetrated by EMDS Slug. 08000_ System corrupted: Plasma Rifle rejected. 08000_ Dropped Hcp. Storage Unit. 08000_ Dropped Adv. Variable Charge Gun. 08001_ Penetrated by EMDS Slug. Map ----- +----------------------------------------------------+ | | | | | | | | | | | | | | | ????????????????????############################## | | ????????????????????## [ ## """ """ """ # | | ??????##########????## " """ ???? ? | | ??????################ ???????? ??? | | ?????? ####### ## # | | ????## """" # ####;;###############+####### | | ????## """" # ! | | ????## """" + %=| | | ????## """" # =%[ | | ????## #! ###;;;;;;############# ###### | | ????## = ######## ; ############+###### | | ????## = ######## [!; #???## # | | ????###########??????## ! ; ###### # | | ????###########??????## u ;####### # | | ???????????????????#### < ; ### * !+ | | ??????????????#?#### ## ;### ### # | | ?????????????## # # ;###/### # | | ?????????????# ; ! ; # # | | ?????????????# ; @ ; # # | | ?????????????## ;;;;;;;;!;;;; = # + | | ?????????????# ; [[! ;; # # | | ?????????????# ; !/ ;; ! # # | | ?????????????# ; ;; # # | | ?????????????# ; ;;; ;########/######## | | ?????????????## ; ;hh [% ## # | | ??????????????# ; hhh%! % ##???# | | ??????????????# ; ;;;i;;;;;;""## ##???? | | ??????????????# ; ;;xh =!;% ### ##???? | | ??????????????# ; ;;x %; ### ##???? | | ??????????????# ; ;; i [; ### ## ??? | | ??????????????# ; ! ;; h ; ### ## # | | ??????????????##;;;;;;;;;;;;;; p # ## ! ##+## | | ?????????????? ; ; ; " ## | | ????????????? " ; # ! # " ## T | | ???????????? ###########;## " ## ##+## | | ??????????? ? ??????##### ## ### ## # | | ????????????/#""""""";??????##### ######## ##" # | | ???????????#?# ################ ######## ##" # | | ?????????????##### !% ##" # | | ??????????????? ! + # | | ??????????????? < ###############=%"######" %# | | ???????????????????????# |# ="######" # | | ??????????????????????## # #######" # | +----------------------------------------------------+ Best States ------------- Heat Dissipation 56 Coolant Potential 65 Energy Generation 25 Energy Capacity 850 Matter Stores 300 Matter Capacity 300 Sight Range 20 Robot Scan Range 16 Terrain Scan Density 10 Corruption Block 8 Armor Coverage 450 Resistance: KI 30 Resistance: TH 30 Resistance: EM 25 Evasion (%) 50 Targeting Accuracy 8 Recoil Reduction 4 Offensive Hacking 20 Item Schematics ----------------- Combat Drone Bay | -7/Data Miner | Free Lgt. Regenerative Plating | -7/Data Miner | Free Cld. Cesium-ion Thruster | -7/Data Miner | Free Exp. Weapon Shielding | -7/Data Miner | Free Imp. Heavy Machine Gun | -7/Data Miner | Free Field Propulsion Drive | -7/Data Miner | Free Mni. Drone Bay | -7/Data Miner | Free Wave Gun | -7/Data Miner | Free Hvy. Pick | -7/Data Miner | Free Imp. Linear Gravjet | -7/Data Miner | Free Adv. Datajack | -7/Data Miner | Free Robot Schematics ------------------ L-41 Fighter | -7/Data Miner | Free X-67 Chaingunner | -7/Data Miner | Free A-15 Conveyor | -7/Data Miner | Free S-27 Virus | -7/Data Miner | Free B-60 Warrior | -7/Data Miner | Free H-66 Slayer | -7/Data Miner | Free Fabricated ------------ Hvy. Treads | x2 | -7/Factory | Preloaded Alien Tech Used ----------------- Core Expander Achievements -------------- None Challenges ------------ None Game ------ Seed SupersonicSeismicRifle Manual? 0 Play Time 02:01:04 Cumulative 1026.5 hours Start 2024.02.08 @ 18:38:49 End 2024.02.08 @ 20:58:50 Sessions 1 Manual Loads 0 Difficulty Rogue Special Mode None Game No. 518 Rogue 391 Adventurer 125 Explorer 2 Win Type - Total 123 Types 97/9/8/3/3/0/0/2/1 Lore% 82 Gallery% 89 Achievement% 84 Wizard Run 0 Options --------- ASCII 0 Keyboard 1 Movement Numpad Keybinds 0 Fullscreen 1 Font 36/TerminusFine Map View 76x50 Zoom Use 0% Tactical HUD 1 Map Filters NONE Filters NONE Steam 1 RUN: 4f1fc62e-f58c-4845-85a7-e36e39593eec